bitfinex/quotes_BTCUSD_20240605
["timestamp","ask_amount","ask_price","bid_price","bid_amount"]
[1717602772588,0.03650708,71495.0,71483.0,0.139892]
[1717602772808,0.14441893,71494.0,71484.0,0.139891]
[1717602773026,0.15067725,71494.0,71484.0,0.139891]
[1717602773382,0.15067725,71494.0,71490.0,0.139878]
[1717602773587,0.15067725,71494.0,71482.0,0.07222824]
[1717602773994,0.15067725,71494.0,71491.0,0.139877]
[1717602774327,0.00625832,71494.0,71486.0,0.1544]
[1717602774728,0.17064096,71502.0,71486.0,0.1544]
[1717602774863,0.14441893,71501.0,71486.0,0.1544]
[1717602775067,0.15067747,71501.0,71497.0,0.139865]
[1717602775923,0.15067747,71501.0,71498.0,0.139863]
[1717602776127,0.15067747,71501.0,71491.0,0.214177]
[1717602776327,0.30857747,71501.0,71486.0,0.2287]
[1717602776529,0.30231893,71501.0,71486.0,0.2287]
[1717602776753,0.0062585,71500.0,71486.0,0.2287]
[1717602776959,0.14441893,71499.0,71486.0,0.2287]
[1717602777158,0.14441893,71499.0,71498.0,0.001]
[1717602777383,0.16441893,71499.0,71498.0,0.001]
[1717602777603,0.24111893,71499.0,71498.0,0.001]
[1717602778077,0.22111893,71499.0,71498.0,0.001]
[1717602778230,0.22747524,71499.0,71498.0,0.001]
[1717602779012,0.22747524,71499.0,71498.0,0.002]
[1717602779740,0.22747524,71499.0,71498.0,0.001]
[1717602779942,0.22747524,71499.0,71482.0,0.27979]
[1717602780276,0.22747524,71499.0,71486.0,0.001]
[1717602780400,0.24747524,71499.0,71487.0,0.27977]
[1717602780602,0.24747524,71499.0,71492.0,0.139874]
[1717602780603,0.02,71498.0,71492.0,0.139874]
[1717602780833,0.02,71494.0,71488.0,0.139881]
[1717602781044,0.14441893,71497.0,71486.0,0.001]
[1717602781045,0.14441893,71493.0,71490.0,0.139879]
[1717602781219,0.15076973,71493.0,71490.0,0.139879]
[1717602781418,0.15076973,71493.0,71486.0,0.001]
[1717602781842,0.15076973,71493.0,71491.0,0.139877]
[1717602782423,0.164,71492.0,71491.0,0.139877]
[1717602782621,0.31475377,71492.0,71491.0,0.139877]
[1717602783645,0.31219538,71492.0,71491.0,0.139877]
[1717602783850,0.31219538,71492.0,71485.0,0.01030597]
[1717602784046,0.14441893,71491.0,71486.0,0.01030597]
[1717602784290,0.14441893,71491.0,71482.0,0.27979]
[1717602784452,0.00381071,71490.0,71488.0,0.139882]
[1717602784659,0.14441893,71489.0,71488.0,0.139882]
[1717602785141,0.14822966,71489.0,71488.0,0.139882]
[1717602786056,0.0776,71488.0,71484.0,0.139889]
[1717602786259,0.14441893,71487.0,71484.0,0.139889]
[1717602786457,0.14822964,71487.0,71484.0,0.139889]
[1717602787640,0.14822964,71487.0,71481.0,0.004946]
[1717602788688,0.14822964,71487.0,71482.0,0.001]
[1717602788869,0.14822964,71487.0,71481.0,0.004946]
[1717602789070,0.14822964,71487.0,71485.0,0.139887]
[1717602789353,0.14822964,71487.0,71481.0,0.004946]
[1717602789702,0.14822964,71487.0,71485.0,0.139888]
[1717602790224,0.14822964,71487.0,71481.0,0.005946]
[1717602790225,0.14822964,71487.0,71486.0,0.139887]
[1717602792472,0.00381071,71487.0,71486.0,0.139887]
[1717602792921,0.2326,71498.0,71490.0,0.139879]
[1717602793249,0.14823096,71497.0,71490.0,0.139879]
[1717602793458,0.14823096,71497.0,71487.0,0.139884]
[1717602793459,0.02,71496.0,71487.0,0.139884]
[1717602793631,0.14823096,71497.0,71487.0,0.139884]
[1717602793632,0.02,71491.0,71487.0,0.139884]
[1717602793831,0.14441893,71495.0,71481.0,0.166246]
[1717602793832,0.02381199,71495.0,71490.0,0.139877]
[1717602794043,0.02383083,71490.0,71487.0,0.139885]
[1717602794238,0.02,71488.0,71487.0,0.139885]
[1717602794647,0.00385097,71488.0,71487.0,0.139885]
[1717602795928,0.00385097,71488.0,71487.0,0.140885]
[1717602796107,0.1482699,71488.0,71487.0,0.140885]
[1717602797648,0.1682699,71488.0,71487.0,0.140885]
[1717602797862,0.1682699,71488.0,71487.0,0.139885]
[1717602798478,0.1682699,71488.0,71481.0,0.004946]
[1717602798479,0.02,71484.0,71481.0,0.004946]
[1717602798842,0.02,71482.0,71481.0,0.004946]
[1717602799045,0.16441893,71482.0,71481.0,0.004946]
[1717602799464,0.14441893,71482.0,71481.0,0.004946]
[1717602799697,0.14826991,71482.0,71481.0,0.004946]
[1717602799866,0.14826991,71482.0,71481.0,0.005946]
[1717602800787,0.16826991,71482.0,71481.0,0.005946]
[1717602800984,0.14826991,71482.0,71481.0,0.005946]
[1717602801288,0.16826991,71482.0,71481.0,0.005946]
[1717602801482,0.14826991,71482.0,71481.0,0.005946]
[1717602801939,0.14826991,71482.0,71481.0,0.004946]
[1717602802367,0.14826991,71482.0,71481.0,0.006946]
[1717602802479,0.14826991,71482.0,71481.0,0.146843]
[1717602803143,0.14826991,71482.0,71481.0,0.006946]
[1717602803392,0.14826991,71482.0,71481.0,0.005946]
[1717602804294,0.14826991,71482.0,71481.0,0.004946]
[1717602804616,0.14826991,71482.0,71481.0,0.144843]
[1717602804804,0.14826991,71482.0,71481.0,0.145843]
[1717602805029,0.14826991,71482.0,71481.0,0.144843]
[1717602805458,0.14826991,71482.0,71481.0,0.145843]
[1717602805801,0.14826991,71482.0,71481.0,0.144843]
[1717602806230,0.16826991,71482.0,71481.0,0.004946]
[1717602806632,0.14826991,71482.0,71481.0,0.004946]
[1717602806833,0.16826991,71482.0,71481.0,0.004946]
[1717602807008,0.16826991,71482.0,71481.0,0.005946]
[1717602808431,0.14826991,71482.0,71481.0,0.005946]
[1717602808627,0.14826991,71482.0,71481.0,0.004946]
[1717602809073,0.14826991,71482.0,71481.0,0.005946]
[1717602809272,0.14826991,71482.0,71481.0,0.004946]
[1717602809670,0.14826991,71482.0,71481.0,0.005946]
[1717602809850,0.14826991,71482.0,71481.0,0.004946]
[1717602810482,0.16826991,71482.0,71481.0,0.004946]
[1717602810952,0.16826991,71482.0,71481.0,0.003946]
[1717602811858,0.14826991,71482.0,71481.0,0.003946]
[1717602812234,0.21586991,71482.0,71481.0,0.003946]
[1717602812622,0.21586991,71482.0,71481.0,0.144843]
[1717602812623,0.00385098,71482.0,71481.0,0.144843]
[1717602813095,0.0876,71491.0,71481.0,0.157446]
[1717602813320,0.156,71495.0,71481.0,0.004946]
[1717602813321,0.14902394,71482.0,71481.0,0.004946]
[1717602813603,0.14441893,71482.0,71481.0,0.004946]
[1717602813823,0.14441893,71482.0,71481.0,0.144843]
[1717602814491,0.14441893,71482.0,71481.0,0.145843]
[1717602814706,0.14441893,71482.0,71481.0,0.144843]
[1717602816939,0.14441893,71482.0,71481.0,0.145843]
[1717602817318,0.14441893,71482.0,71481.0,0.144843]
[1717602817512,0.14441893,71482.0,71481.0,0.143843]
[1717602817712,0.14441893,71482.0,71481.0,0.144843]
[1717602818244,0.14441893,71482.0,71481.0,0.004946]
[1717602818440,0.14441893,71482.0,71481.0,0.145843]
[1717602819411,0.16441893,71482.0,71481.0,0.145843]
[1717602819816,0.16441893,71482.0,71481.0,0.005946]
[1717602820898,0.14441893,71482.0,71481.0,0.005946]
[1717602821567,0.14441893,71482.0,71481.0,0.003946]
[1717602821568,0.16441893,71482.0,71481.0,0.003946]
[1717602821724,0.16441893,71482.0,71481.0,0.004946]
[1717602821925,0.16441893,71482.0,71481.0,0.005946]
[1717602822130,0.16441893,71482.0,71481.0,0.004946]
[1717602822418,0.14441893,71482.0,71481.0,0.003946]
[1717602822618,0.14441893,71482.0,71481.0,0.004946]
[1717602823195,0.14441893,71482.0,71481.0,0.144843]
[1717602823393,0.14441893,71482.0,71481.0,0.145843]
[1717602825769,0.14441893,71482.0,71481.0,0.005946]
[1717602825975,0.14441893,71482.0,71481.0,0.004946]
[1717602826617,0.14441893,71482.0,71481.0,0.144843]
[1717602826817,0.14441893,71482.0,71481.0,0.145843]
[1717602827128,0.14441893,71482.0,71481.0,0.143843]
[1717602827354,0.14441893,71482.0,71481.0,0.144843]
[1717602827553,0.14441893,71482.0,71481.0,0.145843]
[1717602830606,0.16441893,71482.0,71481.0,0.145843]
[1717602831577,0.39971893,71482.0,71481.0,0.005946]
[1717602831779,0.49971893,71482.0,71481.0,0.005946]
[1717602832158,0.54159937,71482.0,71481.0,0.005946]
[1717602832376,0.49971893,71482.0,71481.0,0.004946]
[1717602832565,0.24441893,71482.0,71481.0,0.004946]
[1717602832767,0.14441893,71482.0,71481.0,0.003946]
[1717602832966,0.22351893,71482.0,71481.0,0.003946]
[1717602833221,0.24351893,71482.0,71481.0,0.004946]
[1717602833348,0.39771893,71482.0,71481.0,0.004946]
[1717602833958,0.39771893,71482.0,71481.0,0.005946]
[1717602833959,0.46541893,71482.0,71481.0,0.005946]
[1717602834375,0.46541893,71482.0,71481.0,0.004946]
[1717602834966,0.2,71489.0,71481.0,0.004946]
[1717602834967,0.00086,71490.0,71489.0,0.139881]
[1717602835138,0.14527893,71490.0,71489.0,0.139881]
[1717602837619,0.14527893,71490.0,71489.0,0.140881]
[1717602838863,0.14527893,71490.0,71489.0,0.141881]
[1717602839071,0.14527893,71490.0,71489.0,0.140881]
[1717602839901,0.14527893,71490.0,71489.0,0.141881]
[1717602840079,0.14527893,71490.0,71489.0,0.139881]
[1717602840486,0.14527893,71490.0,71489.0,0.140881]
[1717602840935,0.14527893,71490.0,71489.0,0.420644]
[1717602841320,0.14527893,71490.0,71489.0,0.001]
[1717602841321,0.39607893,71490.0,71489.0,0.001]
[1717602841820,0.39607893,71490.0,71489.0,0.002]
[1717602842743,0.39607893,71490.0,71489.0,0.001]
[1717602842958,0.37607893,71490.0,71489.0,0.001]
[1717602843185,0.56517893,71490.0,71489.0,0.002]
[1717602843436,0.37607893,71490.0,71489.0,0.002]
[1717602843897,0.39607893,71490.0,71489.0,0.002]
[1717602844098,0.39607893,71490.0,71489.0,0.001]
[1717602844301,0.37607893,71490.0,71486.0,0.139887]
[1717602844516,0.37607893,71490.0,71481.0,0.003946]
[1717602844517,0.14441893,71489.0,71488.0,0.301283]
[1717602844739,0.00086,71490.0,71488.0,0.301283]
[1717602844740,0.00086,71490.0,71489.0,0.139881]
[1717602844948,0.14527893,71490.0,71489.0,0.139881]
[1717602845163,0.00086,71490.0,71489.0,0.719407]
[1717602845681,0.00086,71490.0,71489.0,0.947307]
[1717602846885,0.00086,71490.0,71489.0,0.927307]
[1717602847080,0.00086,71490.0,71489.0,0.947307]
[1717602847515,0.00086,71490.0,71489.0,0.927307]
[1717602848336,0.00086,71490.0,71489.0,0.947307]
[1717602848996,0.00086,71490.0,71489.0,0.948307]
[1717602849197,0.00086,71490.0,71489.0,0.949307]
[1717602850146,0.00086,71490.0,71489.0,0.948307]
[1717602851445,0.00086,71490.0,71489.0,0.928307]
[1717602852388,0.00086,71490.0,71489.0,0.929307]
[1717602852831,0.00086,71490.0,71489.0,0.928307]
[1717602853410,0.00086,71490.0,71489.0,0.929307]
[1717602853546,0.00086,71490.0,71489.0,0.949307]
[1717602854002,0.00086,71490.0,71489.0,1.22907]
[1717602854209,0.00086,71490.0,71489.0,1.22807]
[1717602854756,0.4692,71505.0,71504.0,0.93736]
[1717602854955,0.1507,71515.0,71514.0,0.139832]
[1717602855156,0.29511893,71515.0,71514.0,0.139832]
[1717602855760,0.14441893,71515.0,71514.0,0.419497]
[1717602857706,0.14441893,71515.0,71514.0,0.420497]
[1717602859248,0.14441893,71515.0,71514.0,0.419997]
[1717602859463,0.1691,71527.0,71524.0,0.139813]
[1717602859464,0.2336,71525.0,71524.0,0.139813]
[1717602859677,0.37801893,71525.0,71524.0,0.139813]
[1717602862166,0.2336,71524.0,71519.0,0.139821]
[1717602862374,0.14441893,71523.0,71521.0,0.139818]
[1717602862550,0.14441893,71523.0,71522.0,0.139817]
[1717602863956,0.14810474,71523.0,71522.0,0.139817]
[1717602864314,0.16810474,71523.0,71522.0,0.139817]
[1717602864716,0.02,71518.0,71505.0,0.157]
[1717602864927,0.2389,71515.0,71514.0,0.139832]
[1717602865160,0.02,71511.0,71509.0,0.139841]
[1717602865324,0.02,71511.0,71501.0,0.279714]
[1717602865325,0.1891,71507.0,71504.0,0.13985]
[1717602865700,0.02,71504.0,71490.0,0.43336945]
[1717602865912,0.1691,71500.0,71491.0,0.279752]
[1717602866141,0.14441893,71499.0,71498.0,0.139864]
[1717602866356,0.14817965,71499.0,71498.0,0.139864]
[1717602866842,0.14817965,71499.0,71494.0,0.13987]
[1717602866843,0.02,71497.0,71494.0,0.13987]
[1717602867063,0.14441893,71496.0,71494.0,0.13987]
[1717602867276,0.1481796,71496.0,71494.0,0.13987]
[1717602868596,0.1481796,71496.0,71495.0,0.139869]
[1717602869282,0.1681796,71496.0,71495.0,0.139869]
[1717602869490,0.1481796,71496.0,71495.0,0.139869]
[1717602869698,0.10349184,71496.0,71495.0,0.139869]
[1717602869916,0.10349184,71496.0,71491.0,0.001]
[1717602869917,0.1732,71495.0,71491.0,0.001]
[1717602870132,0.01,71493.0,71491.0,0.001]
[1717602870358,0.16141394,71492.0,71491.0,0.001]
[1717602870604,0.16511836,71492.0,71491.0,0.001]
[1717602870841,0.14812335,71492.0,71491.0,0.139877]
[1717602871794,0.14441893,71492.0,71491.0,0.139877]
[1717602873248,0.15441893,71492.0,71491.0,0.139877]
[1717602873459,0.14441893,71492.0,71491.0,0.139877]
[1717602874439,0.14441893,71492.0,71491.0,0.144877]
[1717602874642,0.14441893,71492.0,71491.0,0.146877]
[1717602874869,0.14441893,71492.0,71491.0,0.145877]
[1717602875302,0.14441893,71492.0,71491.0,0.139877]
[1717602875429,0.14441893,71492.0,71491.0,0.140877]
[1717602875633,0.14441893,71492.0,71491.0,0.145877]
[1717602875857,0.14441893,71492.0,71491.0,0.425632]
[1717602876022,0.14441893,71492.0,71491.0,0.139877]
[1717602876941,0.39001893,71492.0,71491.0,0.139877]
[1717602877950,0.40001893,71492.0,71491.0,0.140877]
[1717602878161,0.40001893,71492.0,71491.0,0.001]
[1717602878569,0.70001893,71492.0,71491.0,0.001]
[1717602878776,0.01,71482.0,71481.0,0.003946]
[1717602878986,0.39171893,71482.0,71481.0,0.003946]
[1717602879216,0.38171893,71482.0,71481.0,0.003946]
[1717602880524,0.39171893,71482.0,71481.0,0.003946]
[1717602880740,0.38171893,71482.0,71481.0,0.003946]
[1717602880953,0.38171893,71482.0,71481.0,0.004946]
[1717602881158,0.39171893,71482.0,71481.0,0.004946]
[1717602882448,0.39171893,71482.0,71481.0,0.005946]
[1717602882862,0.39171893,71482.0,71481.0,0.004946]
[1717602883486,0.39171893,71482.0,71481.0,0.005946]
[1717602884108,0.38171893,71482.0,71481.0,0.004946]
[1717602884310,0.38171893,71482.0,71481.0,0.003946]
[1717602884518,0.38171893,71482.0,71481.0,0.004946]
[1717602884724,0.38171893,71482.0,71481.0,0.005946]
[1717602884913,0.39171893,71482.0,71481.0,0.004946]
[1717602885460,0.39171893,71482.0,71481.0,0.005946]
[1717602886611,0.59171893,71482.0,71481.0,0.005946]
[1717602886763,0.39171893,71482.0,71481.0,0.005946]
[1717602887164,0.39171893,71482.0,71481.0,0.004946]
[1717602887389,0.53161393,71482.0,71481.0,0.004946]
[1717602887607,0.54826955,71482.0,71481.0,0.005946]
[1717602887791,0.84826955,71482.0,71481.0,0.005946]
[1717602888171,0.84826955,71482.0,71481.0,0.003946]
[1717602888356,0.84826955,71482.0,71481.0,0.004946]
[1717602888564,0.64826955,71482.0,71481.0,0.004946]
[1717602888892,0.84826955,71482.0,71481.0,0.004946]
[1717602889057,0.84826955,71482.0,71481.0,0.005946]
[1717602889870,0.64826955,71482.0,71481.0,0.004946]
[1717602890071,0.64826955,71482.0,71481.0,0.005946]
[1717602890504,0.50837455,71482.0,71481.0,0.005946]
[1717602890708,0.50837455,71482.0,71481.0,0.000946]
[1717602891765,0.40837455,71482.0,71481.0,0.000946]
[1717602892200,0.40837455,71482.0,71481.0,0.001946]
[1717602893164,0.40837455,71482.0,71481.0,0.000946]
[1717602893374,0.40837455,71482.0,71481.0,0.001946]
[1717602894092,0.40837455,71482.0,71481.0,0.001]
[1717602894407,0.40837455,71482.0,71481.0,0.002]
[1717602895180,0.40837455,71482.0,71481.0,0.001]
[1717602895547,0.40837455,71482.0,71481.0,0.002]
[1717602895944,0.40837455,71482.0,71481.0,0.001]
[1717602896549,0.40837455,71482.0,71481.0,0.002]
[1717602897110,0.40837455,71482.0,71481.0,0.001]
[1717602897335,0.01,71479.0,71478.0,0.000946]
[1717602897539,0.15441893,71479.0,71478.0,0.000946]
[1717602899264,0.15441893,71479.0,71478.0,0.001946]
[1717602900851,0.15441893,71479.0,71478.0,0.002946]
[1717602901244,0.15441893,71479.0,71478.0,0.001946]
[1717602902036,0.239883,71488.0,71478.0,0.001946]
[1717602902037,0.00086,71495.0,71481.0,0.2401]
[1717602902247,0.14441893,71494.0,71486.0,0.005]
[1717602902451,0.14441893,71494.0,71493.0,0.139873]
[1717602902665,0.14441893,71494.0,71493.0,0.144873]
[1717602902872,0.14441893,71494.0,71493.0,0.379973]
[1717602904062,0.00086,71495.0,71494.0,0.144871]
[1717602904289,0.00086,71495.0,71494.0,0.78658524]
[1717602904535,0.00086,71495.0,71494.0,0.95288524]
[1717602905396,0.00086,71495.0,71494.0,0.94288524]
[1717602905630,0.00086,71495.0,71494.0,0.306171]
[1717602905837,0.00086,71495.0,71494.0,0.139871]
[1717602906899,0.00086,71495.0,71494.0,0.144871]
[1717602907073,0.00545201,71495.0,71494.0,0.144871]
[1717602907269,0.00086,71495.0,71494.0,0.144871]
[1717602907665,0.00086,71495.0,71494.0,0.145871]
[1717602907888,0.00086,71495.0,71494.0,0.425614]
[1717602908107,0.00091,71495.0,71494.0,0.426614]
[1717602908306,0.00091,71495.0,71494.0,0.50909418]
[1717602908782,0.00091,71495.0,71494.0,0.78783718]
[1717602908985,0.00091,71495.0,71494.0,1.02083718]
[1717602909189,0.00091,71495.0,71494.0,1.31086129]
[1717602909419,0.31442893,71495.0,71494.0,0.08376129]
[1717602909641,0.32442893,71495.0,71494.0,0.001]
[1717602909861,0.3281666,71495.0,71494.0,0.001]
[1717602910047,0.3281666,71495.0,71494.0,0.002]
[1717602910248,0.3281666,71495.0,71494.0,0.001]
[1717602910912,0.3281666,71495.0,71494.0,0.002]
[1717602911495,0.3281666,71495.0,71494.0,0.001]
[1717602911677,0.01,71488.0,71484.0,0.139891]
[1717602911895,0.14441893,71487.0,71484.0,0.139891]
[1717602912300,0.14810936,71487.0,71484.0,0.139891]
[1717602912440,0.14810936,71487.0,71485.0,0.139889]
[1717602915208,0.00699506,71486.0,71485.0,0.139889]
[1717602915512,0.15141399,71486.0,71485.0,0.139889]
[1717602915708,0.15141399,71486.0,71485.0,0.140889]
[1717602915709,0.15530206,71486.0,71485.0,0.140889]
[1717602916123,0.15530206,71486.0,71485.0,0.134389]
[1717602916573,0.148307,71486.0,71485.0,0.133389]
[1717602917205,0.148307,71486.0,71485.0,0.134389]
[1717602922384,0.148307,71486.0,71485.0,0.135389]
[1717602923053,0.148307,71486.0,71485.0,0.002]
[1717602923054,0.158307,71486.0,71485.0,0.002]
[1717602923677,0.158307,71486.0,71481.0,0.000946]
[1717602923678,0.01,71482.0,71481.0,0.000946]
[1717602923939,0.33051477,71482.0,71481.0,0.000946]
[1717602924161,0.33434952,71482.0,71481.0,0.000946]
[1717602925444,0.40984952,71482.0,71481.0,0.000946]
[1717602925686,0.40984952,71482.0,71481.0,0.001946]
[1717602926276,0.57344952,71482.0,71481.0,0.001946]
[1717602927197,0.57344952,71482.0,71481.0,0.002946]
[1717602928354,0.57344952,71482.0,71481.0,0.001946]
[1717602929011,1.14847817,71482.0,71481.0,0.001946]
[1717602929467,1.03634452,71482.0,71481.0,0.001946]
[1717602930334,1.03634452,71482.0,71481.0,0.000946]
[1717602930561,1.03634452,71482.0,71481.0,0.001946]
[1717602930562,0.83634452,71482.0,71481.0,0.001946]
[1717602930775,1.03634452,71482.0,71481.0,0.001946]
[1717602930984,1.03634452,71482.0,71481.0,0.000946]
[1717602931197,1.03734452,71482.0,71481.0,0.000946]
[1717602932743,1.18246239,71482.0,71481.0,0.000946]
[1717602933474,1.17546655,71482.0,71481.0,0.000946]
[1717602933678,1.17446655,71482.0,71481.0,0.000946]
[1717602933817,0.97446655,71482.0,71481.0,0.000946]
[1717602934025,0.49735368,71482.0,71481.0,0.000946]
[1717602934224,0.31735368,71482.0,71481.0,0.000946]
[1717602934429,0.31835368,71482.0,71481.0,0.000946]
[1717602934642,0.31935368,71482.0,71481.0,0.000946]
[1717602935042,0.31835368,71482.0,71481.0,0.000946]
[1717602935462,0.31840368,71482.0,71481.0,0.001946]
[1717602937761,0.14930368,71482.0,71481.0,0.000946]
[1717602937981,0.31840368,71482.0,71481.0,0.000946]
[1717602938201,0.31840368,71482.0,71481.0,0.001946]
[1717602938657,0.31840368,71482.0,71481.0,0.000946]
[1717602938868,0.31840368,71482.0,71481.0,0.001946]
[1717602939304,0.31840368,71482.0,71481.0,0.000946]
[1717602939526,0.31740368,71482.0,71481.0,0.000946]
[1717602940365,0.14830368,71482.0,71481.0,0.000946]
[1717602940591,0.14830368,71482.0,71481.0,0.001946]
[1717602940818,0.32740368,71482.0,71481.0,0.001946]
[1717602941244,0.32740368,71482.0,71481.0,0.000946]
[1717602941666,0.32740368,71482.0,71481.0,0.000446]
[1717602942108,0.32740368,71482.0,71481.0,0.001446]
[1717602942322,0.56940368,71482.0,71481.0,0.001446]
[1717602942738,0.70929868,71482.0,71481.0,0.001446]
[1717602943472,0.56940368,71482.0,71481.0,0.002446]
[1717602943679,0.56940368,71482.0,71481.0,0.001446]
[1717602944102,0.56940368,71482.0,71481.0,0.000446]
[1717602944533,0.56940368,71482.0,71481.0,0.001446]
[1717602945574,0.55940368,71482.0,71481.0,0.000446]
[1717602946207,0.31740368,71482.0,71481.0,0.000446]
[1717602946415,0.31740368,71482.0,71481.0,0.001446]
[1717602946416,0.14830368,71482.0,71481.0,0.001446]
[1717602947069,0.14830368,71482.0,71481.0,0.006446]
[1717602947249,0.14830368,71482.0,71481.0,0.005946]
[1717602947461,0.14830368,71482.0,71481.0,0.005]
[1717602947869,0.14830368,71482.0,71481.0,0.006]
[1717602948289,0.14830368,71482.0,71481.0,0.006946]
[1717602948494,0.14830368,71482.0,71481.0,0.147843]
[1717602948936,0.14830368,71482.0,71481.0,0.002946]
[1717602949081,0.14830368,71482.0,71481.0,0.001946]
[1717602949283,0.14830368,71482.0,71481.0,0.002946]
[1717602950321,0.14830368,71482.0,71481.0,0.146843]
[1717602950705,0.14830368,71482.0,71481.0,0.147843]
[1717602950908,0.14830368,71482.0,71481.0,0.146843]
[1717602951319,0.14830368,71482.0,71481.0,0.147843]
[1717602951740,0.14830368,71482.0,71481.0,0.146843]
[1717602952116,0.14830368,71482.0,71481.0,0.216143]
[1717602953053,0.15830368,71482.0,71481.0,0.001946]
[1717602953272,0.43442182,71482.0,71481.0,0.001946]
[1717602953690,0.39100368,71482.0,71481.0,0.001946]
[1717602954307,0.39100368,71482.0,71481.0,0.000946]
[1717602954895,0.39100368,71482.0,71481.0,0.001946]
[1717602955152,0.59100368,71482.0,71481.0,0.001946]
[1717602955356,0.39100368,71482.0,71481.0,0.001946]
[1717602955567,0.66037977,71482.0,71481.0,0.000946]
[1717602955748,0.56010368,71482.0,71481.0,0.000946]
[1717602956234,0.56010368,71482.0,71481.0,0.001946]
[1717602956539,0.76010368,71482.0,71481.0,0.001946]
[1717602956952,0.56010368,71482.0,71481.0,0.001946]
[1717602959066,0.56010368,71482.0,71481.0,0.000946]
[1717602959467,0.56010368,71482.0,71481.0,0.001946]
[1717602959629,0.56010368,71482.0,71481.0,0.000946]
[1717602960017,0.56010368,71482.0,71481.0,0.001946]
[1717602960349,0.56010368,71482.0,71481.0,0.000946]
[1717602960548,0.38100368,71482.0,71481.0,0.000946]
[1717602960754,0.56010368,71482.0,71481.0,0.001946]
[1717602961874,0.55010368,71482.0,71481.0,0.001946]
[1717602962116,0.56010368,71482.0,71481.0,0.001946]
[1717602962323,0.39100368,71482.0,71481.0,0.001946]
[1717602962523,0.56010368,71482.0,71481.0,0.001946]
[1717602962732,0.32740368,71482.0,71481.0,0.001946]
[1717602964327,0.32740368,71482.0,71481.0,0.000946]
[1717602964541,0.15830368,71482.0,71481.0,0.000946]
[1717602964765,0.32740368,71482.0,71481.0,0.000946]
[1717602965138,0.32740368,71482.0,71481.0,0.001946]
[1717602965304,0.32740368,71482.0,71481.0,0.000946]
[1717602966192,0.32740368,71482.0,71481.0,0.001946]
[1717602966742,0.32740368,71482.0,71481.0,0.000946]
[1717602967529,0.31740368,71482.0,71481.0,0.000946]
[1717602967730,0.32740368,71482.0,71481.0,0.000946]
[1717602968351,0.32740368,71482.0,71481.0,0.001946]
[1717602968966,0.32740368,71482.0,71481.0,0.000946]
[1717602969175,0.62740368,71482.0,71481.0,0.000946]
[1717602969375,0.66370368,71482.0,71481.0,0.000946]
[1717602969775,0.23590368,71482.0,71481.0,0.000946]
[1717602969992,0.54489868,71482.0,71481.0,0.000946]
[1717602970192,0.40500368,71482.0,71481.0,0.000946]
[1717602970386,0.40500368,71482.0,71481.0,0.001946]
[1717602971805,0.01,71479.0,71478.0,0.000946]
[1717602972004,0.16141503,71479.0,71478.0,0.000946]
[1717602972353,0.16513153,71479.0,71478.0,0.000946]
[1717602973400,0.14813543,71479.0,71478.0,0.000946]
[1717602973632,0.15813543,71479.0,71478.0,0.000946]
[1717602973888,0.15813543,71479.0,71478.0,0.001946]
[1717602974090,0.14813543,71479.0,71478.0,0.001946]
[1717602974263,0.15813543,71479.0,71478.0,0.001946]
[1717602975235,0.14813543,71479.0,71478.0,0.001946]
[1717602976756,0.15813543,71479.0,71478.0,0.001946]
[1717602977351,0.14813543,71479.0,71478.0,0.000946]
[1717602977774,0.14813543,71479.0,71478.0,0.001946]
[1717602978127,0.14813543,71479.0,71478.0,0.000946]
[1717602978575,0.14813543,71479.0,71478.0,0.001946]
[1717602978780,0.14813543,71479.0,71478.0,0.000946]
[1717602979159,0.14813543,71479.0,71478.0,0.372649]
[1717602979360,0.14813543,71479.0,71478.0,0.140849]
[1717602979559,0.14813543,71479.0,71478.0,0.000946]
[1717602979761,0.15813543,71479.0,71478.0,0.000946]
[1717602980358,0.15813543,71479.0,71478.0,0.001946]
[1717602981957,0.15813543,71479.0,71478.0,0.000946]
[1717602982566,0.15813543,71479.0,71478.0,0.001946]
[1717602983715,0.35813543,71479.0,71478.0,0.001946]
[1717602983927,0.15813543,71479.0,71478.0,0.001946]
[1717602984959,0.15813543,71479.0,71478.0,0.000946]
[1717602985957,0.14813543,71479.0,71478.0,0.000946]
[1717602986161,0.14813543,71479.0,71478.0,0.001946]
[1717602986359,0.15813543,71479.0,71478.0,0.001946]
[1717602986564,0.14813543,71479.0,71478.0,0.001946]
[1717602988228,0.14813543,71479.0,71478.0,0.000946]
[1717602989021,0.15813543,71479.0,71478.0,0.000946]
[1717602990047,0.22583543,71479.0,71478.0,0.000946]
[1717602990474,0.38153543,71479.0,71478.0,0.000946]
[1717602991524,0.31383543,71479.0,71478.0,0.000946]
[1717602991851,0.38153543,71479.0,71478.0,0.000946]
[1717602992020,0.39855957,71479.0,71478.0,0.000946]
[1717602994482,0.79855957,71479.0,71478.0,0.000946]
[1717602994684,0.88075957,71479.0,71478.0,0.000946]
[1717602994901,1.12066057,71479.0,71478.0,0.000946]
[1717602995742,1.2253986,71479.0,71478.0,0.000946]
[1717602996037,1.3268986,71479.0,71478.0,0.000946]
[1717602996232,1.22221057,71479.0,71478.0,0.000946]
[1717602996849,1.22221057,71479.0,71478.0,0.001946]
[1717602996979,1.22421057,71479.0,71478.0,0.001946]
[1717602997179,1.3655812,71479.0,71478.0,0.001946]
[1717602997439,1.44937485,71479.0,71478.0,0.001946]
[1717602997743,1.44737485,71479.0,71478.0,0.000946]
[1717602997971,1.3635812,71479.0,71478.0,0.000946]
[1717602999119,1.46831923,71479.0,71478.0,0.000946]
[1717602999528,1.47031923,71479.0,71478.0,0.000946]
[1717602999730,1.46831923,71479.0,71478.0,0.000946]
[1717603000113,1.46836341,71479.0,71478.0,0.000946]
[1717603000537,1.3655812,71479.0,71478.0,0.001946]
[1717603001764,1.36798729,71479.0,71478.0,0.002946]
[1717603002031,1.3618647,71479.0,71478.0,0.002946]
[1717603002445,1.02049407,71479.0,71478.0,0.002946]
[1717603002630,1.12523902,71479.0,71478.0,0.002946]
[1717603003078,1.32523902,71479.0,71478.0,0.002946]